Cogmind - Beta 15 @@@ ROGUE MODE // 2025.09.03 @ 01:21:23 Player: fai Result: Exoskeleton Destroyed Performance ------------- Evolutions (8) 4000 Regions Visited (24) 4800 Robots Destroyed (243) 1215 Value Destroyed (19983) 19983 Prototype IDs (53) 1060 Alien Tech Used (12) 2400 Bonus (31952) 31952 TOTAL SCORE: 65410 Bonus ------- Triggered Max Security 1000 High Alert Combat Kills 2304 Follower Combat Kills 11848 Entered Garrisons 1800 Used RIF Installer 6000 Used Core Reset Matrix 3000 Scanned by Researcher 500 Pursued by Intercept 500 Integrated Exoskeleton 5000 Cogmind --------- Core Integrity 0/1450 Matter 10/300 Energy 200/200 System Corruption 4% +Membrane Temperature Cool (0) Movement Walking (30) +NEM 1 Location -2/Section 7 Parts ------- > --- POWER (1) -------- (None) > --- PROPULSION (3) --- Sigix Exoskeleton > --- UTILITY (3) ------ Microwarp Drive > --- WEAPON (2) ------- Sigix Sheargun Sigix Sheargun > --- INVENTORY (5) ---- Graphene Brace Peak State ------------ > --- POWER ------------ (None) > --- PROPULSION ------- Sigix Exoskeleton > --- UTILITY ---------- Microwarp Drive > --- WEAPON ----------- Sigix Sheargun Sigix Sheargun > --- INVENTORY -------- Graphene Brace Terrabomb [Rating: 228] Favorites ----------- Power Micro Antimatter Reactor Engine Hybrid Deuterium Engine Power Core Neutrino Core Reactor Micro Antimatter Reactor Propulsion Armored Wheel Treads Improved Heavy Treads Leg Centrium Leg Wheel Armored Wheel Utility Relay Coupler [Grunt] Device Advanced Force Field Storage High-capacity Storage Unit Processor Enhanced Optical Array Hackware Relay Coupler [Grunt] Protection Improved Medium Armor Plating Artifact Core Physics Calibrator Weapon Improved Remote Datajack Energy Gun Enhanced Quantum Rifle Energy Cannon Matter Neutralizer Ballistic Gun KE Penetrator Launcher Gamma Bomb Array Special Weapon Improved Remote Datajack Impact Weapon Heavy Mace Slashing Weapon Great Axe Piercing Weapon Enhanced Force Lance Build | -11 -10 -9 -9 -9 -8 -8 -8 -8 -7 -7 -6 -6 -5 -5 -5 -5 -4 -4 -3 -3 -3 -2 -2 -2 ------- Run | Yrd Mat Mat Sto Gar Mat Gar Mat Gar Fac Gar Fac Gar Fac Gar Fac Gar Fac Gar Res Tes Gar Res Qua Sec Slots Evolved 16 | . . 2 . . 2 . . . 2 . 2 . 2 . . . 2 . 2 . . 2 . . Power 1 | . . . . . . . . . . . . . . . . . . . . . . 1 . . Propulsion 3 | . . . . . . . . . . . . . 1 . . . 1 . . . . 1 . . Utility 10 | . . 1 . . 2 . . . 2 . 2 . 1 . . . 1 . 1 . . . . . Weapon 2 | . . 1 . . . . . . . . . . . . . . . . 1 . . . . . Parts Attached 290 | 7 3 9 3 23 5 9 4 8 5 13 9 13 7 8 5 26 4 15 5 18 21 25 19 26 Power 27 | 1 1 2 . 2 . . . . 1 1 . 1 . . . 4 . . . . 2 1 4 7 Engine 9 | 1 1 2 . 2 . . . . 1 . . . . . . 2 . . . . . . . . Core 3 | . . . . . . . . . . 1 . . . . . 2 . . . . . . . . Reactor 15 | . . . . . . . . . . . . 1 . . . . . . . . 2 1 4 7 Propulsion 51 | 2 1 1 . 4 . 1 . . . 4 . 3 1 1 1 6 1 1 1 4 3 5 6 5 Treads 5 | . . . . . . . . . . . . . . 1 . 1 1 1 . 1 . . . . Leg 20 | . . . . . . . . . . . . . . . . 1 . . . . 3 5 6 5 Wheel 26 | 2 1 1 . 4 . 1 . . . 4 . 3 1 . 1 4 . . 1 3 . . . . Hover . | . . . . . . . . . . . . . . . . . . . . . . . . . Flight . | . . . . . . . . . . . . . . . . . . . . . . . . . Utility 135 | 2 1 4 . 8 3 7 4 8 2 4 6 4 6 4 3 12 3 10 3 7 7 13 5 9 Device 21 | 1 . . . 3 1 . . 1 1 . 1 . 1 . . 1 1 . . 2 2 1 1 4 Storage 7 | 1 1 1 . . . . . . . . . . . . . 1 . . . 3 . . . . Processor 12 | . . 1 . . . . . . . . 1 1 . . . . . 1 1 . . 3 3 1 Hackware 82 | . . . . 5 1 7 4 7 1 4 4 3 5 3 3 10 2 8 1 2 5 6 1 . Protection 10 | . . 2 . . 1 . . . . . . . . 1 . . . 1 1 . . 3 . 1 Artifact 3 | . . . . . . . . . . . . . . . . . . . . . . . . 3 Weapon 77 | 2 . 2 3 9 2 1 . . 2 4 3 5 . 3 1 4 . 4 1 7 9 6 4 5 Energy Gun 30 | 1 . 1 1 6 . 1 . . 1 1 3 . . 2 . 1 . 3 . 1 3 2 1 2 Energy Cannon 11 | . . . . . 1 . . . . 1 . . . . . 1 . . 1 1 1 2 1 2 Ballistic Gun 12 | 1 . 1 . . . . . . . . . 4 . . . . . 1 . . 4 1 . . Ballistic Cannon . | . . . . . . . . . . . . . . . . . . . . . . . . . Launcher 7 | . . . 2 . . . . . 1 1 . . . 1 . . . . . 2 . . . . Special Weapon 11 | . . . . 1 . . . . . 1 . 1 . . 1 1 . . . 2 1 1 2 . Impact Weapon 2 | . . . . 1 . . . . . . . . . . . . . . . . . . . 1 Slashing Weapon 2 | . . . . 1 1 . . . . . . . . . . . . . . . . . . . Piercing Weapon 2 | . . . . . . . . . . . . . . . . 1 . . . 1 . . . . Special Melee Weapon . | . . . . . . . . . . . . . . . . . . . . . . . . . Unidentified Prototypes 22 | . . . . 1 . . . . 1 . . . . . . 1 . . . 8 . 2 1 8 Parts Lost 72 | . 1 2 1 4 . 2 . 1 2 1 1 2 2 1 2 3 . 1 . 4 10 1 7 24 Power 13 | . 1 . . . . . . . . . . 1 . . . 1 . . . . . . 2 8 Propulsion 20 | . . 1 . 3 . 1 . . . . . . 1 . 1 2 . . . 2 3 . . 6 Utility 24 | . . . . 1 . . . 1 . 1 1 1 1 1 1 . . 1 . 1 4 1 3 6 Weapon 15 | . . 1 1 . . 1 . . 2 . . . . . . . . . . 1 3 . 2 4 Highest Loss Streak 7 | . 1 2 1 2 . 2 . 1 2 1 1 1 2 1 1 1 . 1 . 2 4 1 2 7 To Critical Strikes 1 | . . . . 1 . . . . . . . . . . . . . . . . . . . . Average Backups 18 | 2 6 11 16 19 19 18 18 17 19 18 18 19 17 18 18 18 17 19 18 18 21 22 21 18 Power . | . . 1 2 1 1 1 1 1 1 1 1 1 1 1 1 . . 1 1 1 1 . . . Propulsion 1 | 1 3 3 5 2 1 . . . . 1 2 . . . . . 2 2 1 . . 1 2 . Utility 12 | . 1 4 5 11 14 13 14 12 13 11 11 13 12 12 12 14 12 12 13 11 13 15 12 8 Weapon 3 | . . 2 4 3 3 3 3 3 2 3 3 3 3 3 3 2 2 2 2 4 4 3 3 5 Tool/Special . | . . . . . . . . . . . . . . . . . . . . . . . . . Unused Backups 54 | . . 2 . 6 1 4 . . 1 6 . 5 . . . 8 . 3 . 4 5 1 1 7 Power 4 | . . 1 . 1 . 1 . . . . . . . . . . . . . 1 . . . . Propulsion 7 | . . . . . . . . . . 3 . . . . . . . 1 . 1 . 1 . 1 Utility 33 | . . . . 3 1 3 . . . 2 . 5 . . . 7 . 1 . 1 5 . 1 4 Weapon 9 | . . 1 . 2 . . . . 1 1 . . . . . 1 . 1 . 1 . . . 1 Tool/Special 1 | . . . . . . . . . . . . . . . . . . . . . . . . 1 Average Slot Usage (%) 93 | . 99 95 92 99 99 98 100 98 94 100 96 99 88 99 96 97 89 88 92 93 87 89 89 77 Engine 3 | . 13 11 11 11 9 9 9 9 7 4 . 3 . . . 3 5 5 4 4 . . . . Reactor 2 | . . . . . . . . . . . . 1 5 5 5 . . . . . 3 7 7 6 Treads 1 | . . . . . . . . . . . . . . 4 5 1 9 10 6 3 . . . . Leg 3 | . . . . . . . . . . . . . . . . . . . . . 6 13 14 17 Wheel 9 | . 28 21 22 21 18 17 18 18 15 15 13 12 10 11 10 12 . . 4 13 2 . . . Device 5 | . 14 . . 14 9 9 1 5 14 3 3 3 2 4 5 3 8 . . 2 8 2 4 9 Storage 5 | . 14 11 11 11 9 9 9 9 7 7 6 6 5 5 5 5 5 5 4 4 4 4 4 3 Processor 7 | . . 10 11 1 . . . . . . 5 12 11 11 11 11 10 9 9 9 7 6 8 10 Hackware 28 | . . . . 5 17 15 27 22 26 42 40 36 34 31 29 34 32 38 39 39 33 34 25 11 Protection 2 | . . 10 11 . 9 9 7 6 . . . . . 3 2 2 . 2 2 . 1 1 4 . Energy Gun 7 | . 14 12 14 26 15 18 18 12 10 9 9 1 . 5 11 8 5 4 4 2 1 1 5 5 Energy Cannon 2 | . . . . . 2 3 . . 2 6 4 . 1 . . 2 5 3 4 3 2 3 2 2 Ballistic Gun 2 | . 14 17 10 . . . . . . . . 13 11 5 . . . 1 4 . 4 2 . . Special Weapon 3 | . . . . 3 8 3 9 6 6 4 4 2 2 4 4 3 5 4 4 3 3 4 2 . Peak Build Rating 228 | 7 8 15 16 33 41 41 39 40 46 56 69 78 79 90 89 88 105 106 117 128 167 181 199 228 Average Rating 92 | 6 7 12 14 24 38 39 37 36 42 48 65 68 72 85 83 78 104 103 111 120 150 173 181 169 On Entrance 70 | . 7 8 13 16 32 39 39 38 36 46 56 63 78 76 89 84 88 104 103 106 117 160 176 180 Naked Turns . | . . . . . . . . . . . . . . . . . . . . . . . . . Heaviest Build 167 | 13 28 59 60 65 70 71 67 69 69 72 76 74 83 93 87 92 83 83 83 141 143 153 158 167 Greatest Support 158 | 32 32 32 26 26 24 24 24 24 24 28 24 24 22 22 28 48 150 150 145 52 125 153 158 150 Greatest Overweight (x) 17 | . . 3 2 6 2 5 2 2 2 2 3 6 17 4 7 6 . . 2 4 5 1 . 3 Average Overweight (x) 1 | . . 1 2 2 2 2 2 2 2 2 2 2 2 2 3 3 . . . 2 . . . . Largest Inventory Capacity 25 | 8 15 20 20 20 20 20 20 20 20 20 20 20 20 20 20 20 20 20 20 25 25 25 25 25 Average Capacity 21 | 7 8 17 20 20 20 20 20 20 20 20 20 20 20 20 20 20 20 20 20 23 25 25 25 23 Most Carried 25 | 5 8 17 19 20 20 20 19 20 20 20 20 20 20 20 20 20 19 20 20 24 25 25 25 25 Average Carried 19 | 2 6 11 16 19 19 18 18 17 19 18 18 19 17 18 18 19 17 19 19 20 23 23 23 21 Final Capacity 25 | 8 15 20 20 20 20 20 20 20 20 20 20 20 20 20 20 20 20 20 20 25 25 25 25 5 Final Carried 25 | 5 7 16 19 20 20 19 18 20 17 20 18 20 14 20 19 19 17 20 20 21 25 20 22 1 Class Distribution -------------------- 35% | Botlord-Gunner 21% | Botlord-Tank 10% | Botlord-Mutant 5% | Bothacker-Tank 4% | Commander-Tank 3% | Botlord-Skirmisher 3% | Commander-Gunner 3% | Mutant Dominant Class ---------------- Mutant | -10/Materials Gunner | -9/Materials Scavenger-Mutant | -9/Storage Bothacker-Gunner | -9/Garrison Bothacker-Tank | -8/Materials Bothacker-Tank | -8/Garrison Botlord-Tank | -8/Materials Botlord-Mutant | -8/Garrison Botlord-Gunner | -7/Factory Botlord-Gunner | -7/Garrison Botlord-Skirmisher | -6/Factory Botlord-Gunner | -6/Garrison Botlord-Gunner | -5/Factory Botlord-Tank | -5/Garrison Commander-Gunner | -5/Factory Botlord-Tank | -5/Garrison Botlord-Tank | -4/Factory Botlord-Tank | -4/Garrison Botlord-Tank | -3/Research Botlord-Gunner | -3/Testing Botlord-Gunner | -3/Garrison Botlord-Gunner | -2/Research Botlord-Gunner | -2/Quarantine Botlord-Mutant | -2/Section 7 Resources | -11 -10 -9 -9 -9 -8 -8 -8 -8 -7 -7 -6 -6 -5 -5 -5 -5 -4 -4 -3 -3 -3 -2 -2 -2 ----------- Run | Yrd Mat Mat Sto Gar Mat Gar Mat Gar Fac Gar Fac Gar Fac Gar Fac Gar Fac Gar Res Tes Gar Res Qua Sec Matter Collected 10975 | 303 108 202 280 556 50 545 54 426 151 429 22 935 362 513 197 643 230 854 180 543 1047 760 510 1075 Remotely . | . . . . . . . . . . . . . . . . . . . . . . . . . Salvage Created 11373 | 204 310 249 159 398 50 485 . 323 104 975 180 652 287 166 163 1186 88 335 . 25 925 291 995 2823 Parts 539 | 13 17 20 5 23 5 38 . 19 5 42 5 36 18 10 6 57 2 21 . . 33 12 48 104 Haulers Intercepted 3 | . 1 . . . . . . . . . . . . . . . . . . . . . . 2 Recyclers Shooed 2 | 1 . . . . . . . . . . . . . . . . . . . . . 1 . . Parts Field Recycled . | . . . . . . . . . . . . . . . . . . . . . . . . . Retrieved Matter . | . . . . . . . . . . . . . . . . . . . . . . . . . Parts Self-Destructed . | . . . . . . . . . . . . . . . . . . . . . . . . . Prevented . | . . . . . . . . . . . . . . . . . . . . . . . . . Kills | -11 -10 -9 -9 -9 -8 -8 -8 -8 -7 -7 -6 -6 -5 -5 -5 -5 -4 -4 -3 -3 -3 -2 -2 -2 ------- Run | Yrd Mat Mat Sto Gar Mat Gar Mat Gar Fac Gar Fac Gar Fac Gar Fac Gar Fac Gar Res Tes Gar Res Qua Sec Combat Hostiles Destroyed 202 | . 7 8 3 14 1 18 . 9 1 16 3 14 5 4 . 13 1 9 . 3 14 5 13 41 Melee 2 | . . . . . . . . . . . . . 1 . . . . . . . 1 . . . Guns 118 | . 7 8 2 14 . 14 . 9 1 7 2 14 3 4 . 9 . 2 . . 9 2 8 3 Cannons 44 | . . . . . 1 3 . . . 3 . . 1 . . 4 1 3 . . 2 3 5 18 AOE 27 | . . . 1 . . . . . . 5 . . . . . . . 4 . 3 2 . . 12 Classes Destroyed 21 | 3 4 2 1 3 . 1 . . . . 1 . 2 . . 1 . 1 . . . . 1 1 Worker 5 | 2 . . . . . . . . . . . . . . 1 . . . . . . . 1 1 Builder 4 | . . . . . . . . . . . . . . . . . . . . . . . 1 3 Tunneler 3 | 3 . . . . . . . . . . . . . . . . . . . . . . . . Hauler 3 | . 1 . . . . . . . . . . . . . . . . . . . . . . 2 Recycler 4 | 1 . . . . . . . . 1 . . . . . 1 . . . . . . . . 1 Mechanic 3 | . . . 1 . . . . 1 . . . . 1 . . . . . . . . . . . Operator 2 | . . 1 . . . . . . . . . . . . . . . . . . . . 1 . Watcher 6 | . 2 2 . . . . . . . . . . . . . . . . . . . . . 2 Swarmer 71 | . 3 4 . 2 . 7 . 4 1 7 . 9 1 4 . 5 . 4 . . 9 4 2 5 Cutter 8 | . . . . . . 2 . . . . . . . . . 2 . 4 . . . . . . Saboteur 2 | . . . . . . . . . . . . . 1 . . 1 . . . . . . . . Grunt 46 | . 4 3 2 6 . 2 . 4 . 9 . 4 . 1 . 1 . 1 . . 3 1 2 3 Brawler 1 | . . . . 1 . . . . . . . . . . . . . . . . . . . . Duelist 2 | . . . . 2 . . . . . . . . . . . . . . . . . . . . Researcher 2 | . . . . . . . . . . . . . . . . . . . . . . . . 2 Sentry 10 | . . 1 1 . 1 3 . . . 1 . . 1 . . . 1 . . . . . . 1 Demolisher 1 | . . . . . . . . . . . . . 1 . . . . . . . . . . . Specialist 2 | . . . . . . . . . . . . . . . . 1 . . . . . . . 1 Hunter 26 | . . . . . . . . . . . 2 . . . . . . . . 1 . . 5 18 Programmer 34 | . . . . 3 . 4 . 1 . . 1 1 2 . . 4 . . . 2 1 1 4 10 Behemoth 2 | . . . . . . . . . . . . . . . . . . 1 . . 1 . . . S7 Guard 3 | . . . . . . . . . . . . . . . . . . . . . . . . 3 Investigator 1 | . . . . . . . . . . . . . . . . . . . . . . . . 1 Thug 1 | . . . . 1 . . . . . . . . . . . . . . . . . . . . Guerrilla 1 | . . . . . . . . . . . . 1 . . . . . . . . . . . . Best Kill Streak 15 | 3 3 2 3 4 1 5 . 2 2 6 2 4 2 2 1 3 1 4 . 2 4 1 5 15 Combat Bots Only 10 | . 2 2 2 4 1 5 . 2 1 6 2 4 2 2 . 3 1 4 . 2 4 1 3 10 Max Kills in Single Turn 4 | 1 1 1 1 2 1 4 . 2 2 2 1 2 2 1 1 2 1 4 . 2 2 1 2 3 Gunslinging 1 | . . . . 1 . . . 1 . . . 1 . . . . . . . . . . . . Exploded 4 | . . . 1 . . . . . . 2 . . . . . . . 4 . 2 2 . . 3 Melee 1 | . . . . . . . . . . . . . 1 . . . . . . . 1 . . . Uniques/NPCs Destroyed . | . . . . . . . . . . . . . . . . . . . . . . . . . Combat | -11 -10 -9 -9 -9 -8 -8 -8 -8 -7 -7 -6 -6 -5 -5 -5 -5 -4 -4 -3 -3 -3 -2 -2 -2 -------- Run | Yrd Mat Mat Sto Gar Mat Gar Mat Gar Fac Gar Fac Gar Fac Gar Fac Gar Fac Gar Res Tes Gar Res Qua Sec Hostile Shots Fired 1896 | . 36 54 8 64 3 46 5 27 19 79 46 46 9 26 11 81 16 74 2 54 135 78 168 809 Missed 643 | . 8 12 3 13 . 12 2 5 4 28 13 12 . 5 . 13 3 27 . 15 42 29 48 349 Hits 1253 | . 28 42 5 51 3 34 3 22 15 51 33 34 9 21 11 68 13 47 2 39 93 49 120 460 Melee 12 | . . . . 2 . 1 . . . . . . 1 . . 2 . 3 . . . . . 3 Projectile 1241 | . 28 42 5 49 3 33 3 22 15 51 33 34 8 21 11 66 13 44 2 39 93 49 120 457 AOE 7 | . . . . . . 1 . . . . . . 2 . 1 1 . . . 1 . . . 1 Critical Strikes 50 | . 1 . 1 2 . 6 1 1 . . . . . 1 . 3 . 5 . 4 3 . 7 15 Actively Blocked 9 | . . . . . . . . . . . . . . . . . . . . . 3 . . 6 Part Disruptions 3 | . . . . . . . . . . . . 1 . . . 1 . . . . . . . 1 Damage Taken 22059 | . 339 434 77 666 44 529 44 187 275 404 461 588 312 362 236 968 187 1208 77 963 1898 988 3019 7793 Core 3914 | . 148 19 14 169 15 134 . 38 65 106 145 33 142 24 48 168 . 121 . 168 238 196 205 1718 Absorbed by Shields 2508 | . . . . 4 . 63 . 94 . 191 . 180 36 57 79 480 109 222 . 113 186 267 . 427 Ignored by Resistances 2131 | . . . . . . . . . . . . . . . . . . . . . . . . 2131 Regen/Repaired (Parts) 413 | . . . . . . . 3 . 18 22 . . . . . . . 66 . 137 . . 26 141 Core Remaining (%) 69 | 100 40 . . 49 . . . 66 . 75 . 79 . . . 61 . 89 . . 68 . . . Volleys Fired 1244 | 13 29 29 5 65 10 58 12 36 19 64 32 55 25 42 15 74 30 118 12 41 84 65 95 216 Largest 3 | 2 2 3 3 3 2 3 1 2 3 3 3 3 3 3 2 3 2 2 1 1 3 2 3 3 Hottest 278 | 70 70 135 150 195 160 240 5 160 180 209 250 160 99 99 188 278 193 193 113 200 225 200 250 243 Shots Fired 1818 | 26 58 79 11 115 12 94 12 46 24 95 42 94 35 64 21 112 34 141 12 41 147 83 163 257 Gun 958 | 26 58 79 5 83 3 55 . 19 9 45 11 73 18 42 12 57 4 32 . 2 108 26 103 88 Cannon 366 | . . . . . 3 11 . . . 18 8 . 1 . . 20 5 47 3 6 17 27 48 152 Launcher 28 | . . . 6 . . . . . . 7 . . . 1 . . . 1 . 2 1 . . 10 Special 466 | . . . . 32 6 28 12 27 15 25 23 21 16 21 9 35 25 61 9 31 21 30 12 7 Kinetic 299 | 13 29 45 2 5 . . . . . . . 56 18 40 . . . 5 . . 61 25 . . Thermal 973 | 13 29 34 3 78 6 63 . 19 9 63 19 17 1 2 12 77 9 74 3 8 64 28 151 191 Explosive 10 | . . . 3 . . . . . . . . . . . . . . . . 2 . . . 5 Electromagnetic 21 | . . . 3 . . 3 . . . 7 . . . 1 . . . 1 . . 1 . . 5 Slashing 49 | . . . . . . . . . . . . . . . . . . . . . . . . 49 Robot Hit Streak 33 | 7 10 9 11 15 5 21 3 13 6 9 12 12 6 18 33 28 17 19 11 9 10 8 16 18 Robot Miss Streak 8 | 2 2 4 2 7 3 4 1 2 8 3 4 4 6 3 2 3 1 4 1 2 4 2 4 5 Penetration Max 1 | . . . . . . . . . . . . 1 1 1 . . . . . . . . . 1 Secondary Targets 16 | . . . . 3 . 2 . 1 . 1 . 4 1 . . 2 . . . . 1 . . 1 Max Gunslinging Chain 1 | . . . . 1 . 1 . 1 . 1 . 1 1 . . 1 . . . . 1 . . 1 Capacitor 132 | . . . . . . . . . . . . . . . . . . . . . . . . 132 Shots Hit Robots 1200 | 16 38 47 7 92 9 55 8 37 17 63 28 59 19 38 19 105 30 89 8 22 112 49 86 147 Core Hits 498 | 7 16 16 10 76 3 36 . 20 5 33 2 24 7 10 5 32 2 17 . 9 44 9 33 82 Critical Kills 9 | . . . . . . . . . . 1 . 1 . . . . . 1 . . . . . 6 Critical Parts Destroyed 3 | . . . . . . . . . . . 1 . . . . . . 1 . . . 1 . . Critical Strikes 30 | 1 2 1 . . . . . . 1 3 1 1 . . . 6 1 2 . . 2 1 1 7 Burn 10 | 1 2 1 . . . . . . 1 1 . . . . . 1 1 . . . 2 . . . Meltdown 8 | . . . . . . . . . . 1 . . . . . . . 1 . . . . . 6 Destroy 4 | . . . . . . . . . . . 1 1 . . . . . 1 . . . 1 . . Sever 2 | . . . . . . . . . . 1 . . . . . . . . . . . . . 1 Impale 6 | . . . . . . . . . . . . . . . . 5 . . . . . . 1 . Melee Attacks 117 | . . . . 12 4 3 . 5 . 10 . 4 . . . 25 . . . 11 23 4 8 8 Kinetic 2 | . . . . . . . . . . . . . . . . . . . . . . . . 2 Impact 8 | . . . . 8 . . . . . . . . . . . . . . . . . . . . Slashing 30 | . . . . 4 4 3 . 5 . 10 . 4 . . . . . . . . . . . . Piercing 77 | . . . . . . . . . . . . . . . . 25 . . . 11 23 4 8 6 Sneak Attacks . | . . . . . . . . . . . . . . . . . . . . . . . . . Combat Hostiles . | . . . . . . . . . . . . . . . . . . . . . . . . . Follow-up Attacks . | . . . . . . . . . . . . . . . . . . . . . . . . . Damage Inflicted 37031 | 215 486 565 548 982 82 1086 . 389 117 1998 227 1623 295 657 308 3714 218 1447 . 1682 4327 896 3065 12104 Guns 15313 | 215 486 565 56 982 56 1000 . 389 117 624 159 1332 260 634 308 1082 76 635 . . 1595 327 2166 2249 Cannons 9064 | . . . . . 26 86 . . . 210 68 . 35 . . 504 142 652 . 182 596 569 781 5213 Explosions 7966 | . . . 492 . . . . . . 524 . . . 23 . . . 160 . 1500 630 . . 4637 Melee 4683 | . . . . . . . . . . 640 . 291 . . . 2128 . . . . 1506 . 118 . Ramming 5 | . . . . . . . . . . . . . . . . . . . . . . . . 5 Kinetic 3965 | 103 236 304 12 . . . . . . . . 1044 260 634 . . . 113 . . 932 327 . . Thermal 22167 | 112 250 261 44 982 82 1086 . 389 117 921 227 288 35 . 308 1586 218 1212 . 689 1620 569 2947 8224 Explosive 3146 | . . . 279 . . . . . . . . . . . . . . . . 993 . . . 1874 Electromagnetic 1651 | . . . 213 . . . . . . 437 . . . 23 . . . 122 . . 269 . . 587 Impact . | . . . . . . . . . . . . . . . . . . . . . . . . . Slashing 2345 | . . . . . . . . . . 640 . 291 . . . . . . . . . . . 1414 Piercing 3752 | . . . . . . . . . . . . . . . . 2128 . . . . 1506 . 118 . Highest Corruption 29 | . . . . 2 . 5 5 5 . . . 1 . 1 1 2 10 12 . 6 8 . 19 29 Average Corruption 6 | . . . . 1 . 3 5 5 . . . 1 . 1 1 1 9 10 . 5 7 . 8 21 Corruption Purged 1 | . . . . . . . . . . . . . . . . 1 . . . . . . . . Corruption Blocked . | . . . . . . . . . . . . . . . . . . . . . . . . . Effects 345 | . . . . 16 . 22 2 25 . . . 11 . 5 5 13 14 84 . 3 38 . 35 72 Message Errors 90 | . . . . 4 . 6 1 7 . . . . . . 1 5 2 28 . . 8 . 10 18 Matter Fused 91 | . . . . 8 . 7 1 5 . . . 5 . 5 2 2 2 23 . 2 11 . 8 10 Heat Flow Errors 36 | . . . . 1 . . . 4 . . . 2 . . . 1 3 6 . . 4 . 7 8 Energy Discharges 32 | . . . . 1 . 2 . 3 . . . 1 . . 1 1 2 8 . 1 1 . 1 10 Parts Rejected 6 | . . . . . . . . . . . . 1 . . . . . . . . 1 . 2 2 Parts Fused 5 | . . . . 1 . 1 . . . . . . . . . . . 2 . . . . . 1 Data Loss (minor) 31 | . . . . 1 . 4 . 3 . . . . . . . . 4 7 . . 6 . 4 2 Data Loss (major) 17 | . . . . . . . . . . . . 1 . . . 1 1 5 . . 4 . 2 3 Misfires 14 | . . . . . . 1 . 2 . . . 1 . . . 2 . 3 . . 2 . . 3 Alerts 9 | . . . . . . 1 . 1 . . . . . . 1 1 . 1 . . . . . 4 Misdirections 1 | . . . . . . . . . . . . . . . . . . . . . . . . 1 Weapon Failures 13 | . . . . . . . . . . . . . . . . . . 1 . . 1 . 1 10 Overload Shots 8 | . . . . . . . . . . 8 . . . . . . . . . . . . . . Overflow Damage 3031 | . . . 9 . . . . . . 69 23 82 . . . 202 . . . 383 263 29 108 1863 Projectiles 1409 | . . . . . . . . . . 9 23 . . . . 32 . . . 137 51 29 62 1066 Explosions 1064 | . . . 9 . . . . . . . . . . . . . . . . 246 12 . . 797 Melee 558 | . . . . . . . . . . 60 . 82 . . . 170 . . . . 200 . 46 . Knockbacks . | . . . . . . . . . . . . . . . . . . . . . . . . . Impact . | . . . . . . . . . . . . . . . . . . . . . . . . . Kinetic . | . . . . . . . . . . . . . . . . . . . . . . . . . Secondary . | . . . . . . . . . . . . . . . . . . . . . . . . . Self-Inflicted Damage 262 | . . . . . . . . . . . . . . 22 . . . 111 . . . . . 129 Shots 13 | . . . . . . . . . . . . . . 2 . . . 5 . . . . . 6 Rammed . | . . . . . . . . . . . . . . . . . . . . . . . . . Targets Rammed 1 | . . . . . . . . . . . . . . . . . . . . . . . . 1 Kicked 1 | . . . . . . . . . . . . . . . . . . . . . . . . 1 Crushed . | . . . . . . . . . . . . . . . . . . . . . . . . . Highest Temperature 361 | 45 111 267 93 261 94 313 4 302 96 211 216 360 28 36 306 361 224 318 78 138 308 310 91 359 Average Temperature 88 | 15 34 90 33 95 45 90 4 110 44 61 92 122 21 11 149 121 81 90 44 53 64 96 50 117 Received Heat Transfer 1818 | . 159 150 36 88 18 22 27 58 18 99 30 118 18 71 32 58 20 80 9 12 254 49 21 371 Effects 17 | . . 3 . . . 1 . . . . . 1 . . . 1 . . . . . 2 . 9 Energy Bleed 2 | . . . . . . . . . . . . 1 . . . 1 . . . . . . . . Interference 15 | . . 3 . . . 1 . . . . . . . . . . . . . . . 2 . 9 Siege Activations . | . . . . . . . . . . . . . . . . . . . . . . . . . Martial Activations . | . . . . . . . . . . . . . . . . . . . . . . . . . Shielding Activations . | . . . . . . . . . . . . . . . . . . . . . . . . . Robots Disrupted 2 | . . . . . . . . . . . . . . . . . . . . . 2 . . . Combat Hostiles 1 | . . . . . . . . . . . . . . . . . . . . . 1 . . . Robots Corrupted . | . . . . . . . . . . . . . . . . . . . . . . . . . Combat Hostiles . | . . . . . . . . . . . . . . . . . . . . . . . . . Parts Fried 1 | . . . . . . . . . . . . . . . . . . . . . 1 . . . Impact Corruptions . | . . . . . . . . . . . . . . . . . . . . . . . . . Robots Melted 11 | . . . . . . 1 . . . 1 1 . . . . . . 1 . . . . . 7 Combat Hostiles 9 | . . . . . . 1 . . . 1 1 . . . . . . . . . . . . 6 Parts Melted 50 | 1 5 1 . . 1 5 . 1 . 4 4 . 6 . 1 4 . . . . . . 2 15 Heat Transferred 26178 | 407 888 814 89 1185 175 1910 . 850 336 1642 296 349 37 . 407 1827 333 1419 . 690 1852 481 3034 7157 Parts Sabotaged 4 | . . . . . . . . . . . . . 4 . . . . . . . . . . . Parts Stolen . | . . . . . . . . . . . . . . . . . . . . . . . . . Parts Stripped 16 | . . . . . . . . . . . . . . . . . . . . . . . . 16 Power Chain Reactions 4 | . . . . . . . . . . 1 . . . 1 . . . 1 . . 1 . . . Alert | -11 -10 -9 -9 -9 -8 -8 -8 -8 -7 -7 -6 -6 -5 -5 -5 -5 -4 -4 -3 -3 -3 -2 -2 -2 ------- Run | Yrd Mat Mat Sto Gar Mat Gar Mat Gar Fac Gar Fac Gar Fac Gar Fac Gar Fac Gar Res Tes Gar Res Qua Sec Maximum Alert Level 5 | . . . 1 3 2 4 2 4 2 3 2 4 3 3 2 5 3 4 3 1 3 2 1 5 Low Security (%) 20 | 100 100 100 72 7 . . . . 52 39 41 7 . . . . . . . 82 . 4 58 23 Level 1 22 | . . . 27 7 83 11 . 5 14 32 46 13 . . 3 19 5 26 8 17 34 74 41 9 Level 2 22 | . . . . 56 16 16 100 24 32 19 12 6 20 4 96 17 10 32 82 . 36 20 . 19 Level 3 24 | . . . . 29 . 41 . 38 . 7 . 36 79 95 . 17 83 34 9 . 29 . . 36 Level 4 8 | . . . . . . 30 . 30 . . . 36 . . . 27 . 7 . . . . . 2 Level 5 1 | . . . . . . . . . . . . . . . . 18 . . . . . . . . High Security . | . . . . . . . . . . . . . . . . . . . . . . . . . Max Security . | . . . . . . . . . . . . . . . . . . . . . . . . 7 Peak Influence 1993 | 10 115 104 256 937 423 1417 690 1217 638 734 469 1476 960 1061 556 1757 921 1283 721 294 834 669 369 1993 Initial 921 | . . 34 . 159 423 216 690 390 638 62 385 80 774 621 556 238 921 214 721 219 214 468 369 135 Average 563 | 2 54 51 108 566 345 918 647 837 293 282 255 920 808 926 474 986 784 658 538 78 526 329 176 694 Influence Increases 18551 | 30 227 271 296 931 100 1541 . 877 41 1012 332 1536 818 530 162 1949 237 1389 93 900 980 981 1079 2239 Destroy 0b10 Robot/C 6580 | . 140 160 180 460 40 620 . 280 20 360 60 540 280 140 60 560 60 360 20 260 400 220 480 880 Destroy 0b10 Robot/NC 260 | 30 15 15 10 . . . . . 5 20 . 10 5 . 10 30 . . . . 15 25 25 45 Destroy Leader 652 | . 36 44 30 20 20 10 . 10 . 20 20 30 42 . 10 40 20 10 10 20 20 32 60 148 Allied During Kill 3680 | . . . 33 70 30 255 . 220 16 184 68 579 327 140 80 553 80 303 30 258 92 190 149 23 Successful Hack 260 | . 5 7 . 21 . . . 7 . 8 5 27 10 . . 7 . . 12 37 24 40 26 24 Disable Machine 945 | . . . 30 . . 15 . . . 15 120 . 45 . . 15 15 15 15 165 30 105 75 285 Anti-Garrison Action 3550 | . . . . 300 . 550 . 300 . 350 . 300 . 250 . 600 . 600 . . 300 . . . Destroy Structure 1859 | . 1 . 13 30 10 1 . . . 10 29 35 64 . 2 54 62 71 6 160 69 354 234 654 Partial Spotted 90 | . . . . . . 30 . . . . . . . . . . . 15 . . . . . 45 Lose Combat Pursuer 675 | . 30 45 . 30 . 60 . 60 . 45 30 15 45 . . 90 . 15 . . 30 15 30 135 Influence Decreases 17059 | 30 145 353 50 307 637 457 817 260 1169 367 951 175 1406 357 883 532 1688 412 986 1004 432 1158 1496 987 Entered New Map 6694 | . . 48 . 87 447 117 727 210 579 27 349 35 702 267 505 102 836 92 562 171 72 366 288 105 Time Decay 4438 | 30 135 285 40 . 170 . 70 . 190 . 422 . 254 . 278 . 262 . 294 386 . 542 538 542 Lost Part 720 | . 10 20 10 40 . 20 . 10 20 10 10 20 20 10 20 30 . 10 . 40 100 10 70 240 Lost Ally 3707 | . . . . 180 20 320 20 40 80 330 20 120 280 80 80 400 140 310 130 257 260 240 300 100 Purge Threat 1500 | . . . . . . . . . 300 . 150 . 150 . . . 450 . . 150 . . 300 . Squads Dispatched 82 | . . 2 3 . . . 1 . 1 . 4 . 4 . 1 . 4 . 2 13 . 5 12 30 Investigation 4 | . . 1 . . . . 1 . . . . . . . . . . . . 1 . 1 . . Extermination 19 | . . . . . . . . . . . 2 . 1 . . . . . 1 3 . 4 4 4 Reinforcement 32 | . . 1 . . . . . . 1 . 2 . 1 . 1 . 2 . . 7 . . 7 10 Assault 18 | . . . 2 . . . . . . . . . 2 . . . . . 1 . . . . 13 Garrison 6 | . . . 1 . . . . . . . . . . . . . 2 . . 2 . . 1 . Intercept 3 | . . . . . . . . . . . . . . . . . . . . . . . . 3 Searches Triggered . | . . . . . . . . . . . . . . . . . . . . . . . . . Construction Impeded 6 | . . . . . . . . . . . 1 . 1 . . . . . . 1 . . 1 2 Haulers Reinforced 2 | . . . . . . . . . . . . . . . 1 . . . . . . . . 1 Active Scanning Responses . | . . . . . . . . . . . . . . . . . . . . . . . . . Cargo Convoy Interrupts . | . . . . . . . . . . . . . . . . . . . . . . . . . Alert ID Control Effect 262 | . . . . . . . . 16 5 17 10 8 8 16 3 17 15 26 3 42 16 39 20 1 Stealth | -11 -10 -9 -9 -9 -8 -8 -8 -8 -7 -7 -6 -6 -5 -5 -5 -5 -4 -4 -3 -3 -3 -2 -2 -2 --------- Run | Yrd Mat Mat Sto Gar Mat Gar Mat Gar Fac Gar Fac Gar Fac Gar Fac Gar Fac Gar Res Tes Gar Res Qua Sec Distress Signals 17 | . 4 . . . . . . . 1 . 1 . 1 . 1 . 1 . . . . 2 2 4 Communications Jammed 55 | . . . . . . . . . . . . . 14 . 1 . 1 . . 5 . 14 20 . Distress Signals 54 | . . . . . . . . . . . . . 14 . 1 . . . . 5 . 14 20 . Times Spotted 793 | . 12 16 6 31 6 31 5 33 11 45 16 44 25 36 7 60 26 53 5 42 47 49 41 146 Peak Tracking Total 22 | . 4 4 4 6 4 8 3 7 4 7 5 7 7 5 2 7 6 6 2 6 5 6 5 22 Tactical Retreats 25 | . 2 1 . 2 . 1 . 2 . 2 1 1 1 . . 4 . 1 . . 2 1 1 3 Traps | -11 -10 -9 -9 -9 -8 -8 -8 -8 -7 -7 -6 -6 -5 -5 -5 -5 -4 -4 -3 -3 -3 -2 -2 -2 ------- Run | Yrd Mat Mat Sto Gar Mat Gar Mat Gar Fac Gar Fac Gar Fac Gar Fac Gar Fac Gar Res Tes Gar Res Qua Sec Traps Triggered 70 | . . 1 . 6 . 11 1 6 . 10 . 5 . 4 1 8 2 4 . . 5 3 1 2 Indirectly 6 | . . . . . . . . . . 6 . . . . . . . . . . . . . . Trap Hack Attempts . | . . . . . . . . . . . . . . . . . . . . . . . . . Triggered . | . . . . . . . . . . . . . . . . . . . . . . . . . Disarmed 10 | . . . . . . . . . . . . . . . . . . . . 10 . . . . Reprogrammed . | . . . . . . . . . . . . . . . . . . . . . . . . . Reused . | . . . . . . . . . . . . . . . . . . . . . . . . . Traps Extracted . | . . . . . . . . . . . . . . . . . . . . . . . . . Installed . | . . . . . . . . . . . . . . . . . . . . . . . . . Triggered . | . . . . . . . . . . . . . . . . . . . . . . . . . Machines | -11 -10 -9 -9 -9 -8 -8 -8 -8 -7 -7 -6 -6 -5 -5 -5 -5 -4 -4 -3 -3 -3 -2 -2 -2 ---------- Run | Yrd Mat Mat Sto Gar Mat Gar Mat Gar Fac Gar Fac Gar Fac Gar Fac Gar Fac Gar Res Tes Gar Res Qua Sec Machines Disabled 107 | . . . 2 4 . 8 . 5 . 5 8 4 3 4 . 7 1 5 1 11 6 7 5 21 Max in Single Turn 3 | . . . 1 1 . 1 . 1 . 1 . 1 . 1 . 1 . 1 . 2 1 3 1 3 Garrison Access 3 | . . . . . . . . . . . . . . . . . . . 1 . . 1 1 . Garrison Relay 42 | . . . . 4 . 7 . 5 . 4 . 4 . 4 . 6 . 4 . . 4 . . . Machines Repaired . | . . . . . . . . . . . . . . . . . . . . . . . . . Machines Dismantled . | . . . . . . . . . . . . . . . . . . . . . . . . . Machines Sabotaged . | . . . . . . . . . . . . . . . . . . . . . . . . . Overloaded Fab Kills . | . . . . . . . . . . . . . . . . . . . . . . . . . Hacking | -11 -10 -9 -9 -9 -8 -8 -8 -8 -7 -7 -6 -6 -5 -5 -5 -5 -4 -4 -3 -3 -3 -2 -2 -2 --------- Run | Yrd Mat Mat Sto Gar Mat Gar Mat Gar Fac Gar Fac Gar Fac Gar Fac Gar Fac Gar Res Tes Gar Res Qua Sec Machines Accessed 89 | . 1 2 1 5 2 2 1 3 3 3 6 3 5 1 4 1 4 1 2 11 4 9 12 3 Terminals 66 | . 1 2 . 5 1 2 . 3 1 3 4 3 2 1 2 1 2 1 1 8 4 5 11 3 Fabricators 11 | . . . . . . . . . 1 . 1 . 2 . 1 . 1 . . 2 . 3 . . Repair Stations . | . . . . . . . . . . . . . . . . . . . . . . . . . Recycling Units . | . . . . . . . . . . . . . . . . . . . . . . . . . Scanalyzers . | . . . . . . . . . . . . . . . . . . . . . . . . . Garrison Access 12 | . . . 1 . 1 . 1 . 1 . 1 . 1 . 1 . 1 . 1 1 . 1 1 . Total Hacks 180 | . 2 4 1 8 4 4 1 7 4 5 14 4 13 2 7 2 7 2 2 29 5 24 24 5 Successful 102 | . 2 2 1 4 2 . 1 2 3 1 9 3 10 . 5 1 4 1 2 15 4 16 11 3 Failed 78 | . . 2 . 4 2 4 . 5 1 4 5 1 3 2 2 1 3 1 . 14 1 8 13 2 Catastrophic 14 | . . 1 . 1 . 2 . . . 2 1 . . . 1 . . . . 1 . 2 3 . Database Lockouts . | . . . . . . . . . . . . . . . . . . . . . . . . . Manual 71 | . 1 4 . . 3 . . . 1 . 6 . 4 . 2 . 4 . . 18 . 8 16 4 Terminals 132 | . 2 4 . 8 3 4 . 7 2 5 7 4 6 2 2 2 4 2 1 24 5 10 23 5 Fabricators 36 | . . . . . . . . . 1 . 6 . 6 . 4 . 2 . . 4 . 13 . . Repair Stations . | . . . . . . . . . . . . . . . . . . . . . . . . . Recycling Units . | . . . . . . . . . . . . . . . . . . . . . . . . . Scanalyzers . | . . . . . . . . . . . . . . . . . . . . . . . . . Garrison Access 12 | . . . 1 . 1 . 1 . 1 . 1 . 1 . 1 . 1 . 1 1 . 1 1 . Terminal Hacks 37 | . 1 1 . 4 . . . 2 1 1 1 3 1 . . 1 . 1 1 8 4 2 4 1 Robot Schematic 3 | . . . . . . . . . . . 1 . . . . . . . . 2 . . . . Prototype ID Bank 1 | . . . . . . . . . . . . . . . . . . . . 1 . . . . Open Door 6 | . . . . 1 . . . 1 . . . 1 . . . 1 . 1 . . 1 . . . Level Access Points 1 | . . . . . . . . . . . . . . . . . . . . 1 . . . . Branch Access Points 4 | . . 1 . . . . . . . . . . . . . . . . 1 1 . 1 . . Machine Index 1 | . . . . . . . . . . . . . . . . . . . . 1 . . . . Unreport Threat 3 | . . . . . . . . . 1 . . . 1 . . . . . . . . . 1 . Locate Traps 3 | . 1 . . . . . . . . . . . . . . . . . . . . . 2 . Disarm Traps 3 | . . . . . . . . . . . . . . . . . . . . 2 . 1 . . Recall Reinforcements 1 | . . . . . . . . . . . . . . . . . . . . . . . 1 . Garrison Registry 5 | . . . . 1 . . . 1 . 1 . 1 . . . . . . . . 1 . . . Patrol Navigation 2 | . . . . 1 . . . . . . . . . . . . . . . . 1 . . . Security Stations 3 | . . . . 1 . . . . . . . 1 . . . . . . . . 1 . . . Activate Exoskeleton 1 | . . . . . . . . . . . . . . . . . . . . . . . . 1 Fabricator Hacks 31 | . . . . . . . . . 1 . 6 . 6 . 4 . 2 . . 1 . 11 . . Network Status 1 | . . . . . . . . . 1 . . . . . . . . . . . . . . . Load Schematic 16 | . . . . . . . . . . . 3 . 3 . 2 . 1 . . 1 . 6 . . Build 14 | . . . . . . . . . . . 3 . 3 . 2 . 1 . . . . 5 . . Repair Station Hacks . | . . . . . . . . . . . . . . . . . . . . . . . . . Recycling Unit Hacks . | . . . . . . . . . . . . . . . . . . . . . . . . . Scanalyzer . | . . . . . . . . . . . . . . . . . . . . . . . . . Garrison Access Hacks 12 | . . . 1 . 1 . 1 . 1 . 1 . 1 . 1 . 1 . 1 1 . 1 1 . Unlock Access 9 | . . . 1 . 1 . 1 . 1 . 1 . 1 . 1 . 1 . . 1 . . . . Seal Access 3 | . . . . . . . . . . . . . . . . . . . 1 . . 1 1 . Unauthorized Hacks 22 | . 1 1 . . 1 . . . . . 1 . 2 . . . 1 . . 5 . 2 6 2 Terminals 22 | . 1 1 . . 1 . . . . . 1 . 2 . . . 1 . . 5 . 2 6 2 Botnet 21 | . 1 1 . . 1 . . . . . 1 . 2 . . . 1 . . 5 . 2 5 2 Operators 1 | . . . . . . . . . . . . . . . . . . . . . . . 1 . Fabricators . | . . . . . . . . . . . . . . . . . . . . . . . . . Repair Stations . | . . . . . . . . . . . . . . . . . . . . . . . . . Recycling Units . | . . . . . . . . . . . . . . . . . . . . . . . . . Scanalyzers . | . . . . . . . . . . . . . . . . . . . . . . . . . Garrison Access . | . . . . . . . . . . . . . . . . . . . . . . . . . Data Cores Recovered 1 | . . . . . . . . . . . . . . . . . . . . . . . 1 . Used 1 | . . . . . . . . . . . . . . . . . . . . . . . 1 . Hacking Detections 64 | . . 2 . 2 1 2 1 2 3 2 5 1 2 1 3 1 2 . . 10 4 6 11 3 Full Trace Events 7 | . . . . . . 2 . 1 . 1 . . . 1 . . . . . 1 . 1 . . Feedback Events . | . . . . . . . . . . . . . . . . . . . . . . . . . Feedback Blocked . | . . . . . . . . . . . . . . . . . . . . . . . . . Robot Schematics Acquired 9 | . . . . . . . . . . . 1 . . . . . . . . 7 . . 1 . Robots Built 26 | . . . . . . . . . . . 6 . 4 . 4 . 2 . . . . 10 . . Authchips 14 | . . . . . . . . . . . 3 . 3 . 2 . 1 . . . . 5 . . Time 1345 | . . . . . . . . . . . 201 . 402 . 268 . 134 . . . . 340 . . Total Robot Build Rating 144 | . . . . . . . . . . . 24 . 16 . 16 . 8 . . . . 80 . . Part Schematics Acquired 20 | . . . . . . . . . . . . . . . . . . . . 15 . . 5 . Parts Built . | . . . . . . . . . . . . . . . . . . . . . . . . . Authchips . | . . . . . . . . . . . . . . . . . . . . . . . . . Time . | . . . . . . . . . . . . . . . . . . . . . . . . . Total Part Build Rating . | . . . . . . . . . . . . . . . . . . . . . . . . . Parts Repaired . | . . . . . . . . . . . . . . . . . . . . . . . . . Time . | . . . . . . . . . . . . . . . . . . . . . . . . . Parts Recycled . | . . . . . . . . . . . . . . . . . . . . . . . . . Recycled Matter . | . . . . . . . . . . . . . . . . . . . . . . . . . Retrieved Matter . | . . . . . . . . . . . . . . . . . . . . . . . . . Retrieved Components . | . . . . . . . . . . . . . . . . . . . . . . . . . Parts Scanalyzed . | . . . . . . . . . . . . . . . . . . . . . . . . . Part Schematics Acquired . | . . . . . . . . . . . . . . . . . . . . . . . . . Parts Damaged . | . . . . . . . . . . . . . . . . . . . . . . . . . Bothacking | -11 -10 -9 -9 -9 -8 -8 -8 -8 -7 -7 -6 -6 -5 -5 -5 -5 -4 -4 -3 -3 -3 -2 -2 -2 ------------ Run | Yrd Mat Mat Sto Gar Mat Gar Mat Gar Fac Gar Fac Gar Fac Gar Fac Gar Fac Gar Res Tes Gar Res Qua Sec Used RIF Installer 12 | . . . . 2 . 2 . 1 . 1 . 1 . 1 . 2 . 1 . . 1 . . . Coupler Efficiency 1 | . . . . . . . . . . . . . . . . 1 . . . . . . . . Hotswap 1 | . . . . . . . . 1 . . . . . . . . . . . . . . . . Command Fork 1 | . . . . . . . . . . . . . . . . . . . . . 1 . . . Signal Jammer 1 | . . . . . . . . . . . . 1 . . . . . . . . . . . . Zone Cloak 1 | . . . . . . . . . . . . . . 1 . . . . . . . . . . Watcher Feeds 1 | . . . . . . . . . . . . . . . . 1 . . . . . . . . Patrol Navigation 1 | . . . . . . . . . . 1 . . . . . . . . . . . . . . Alert ID Control 1 | . . . . . . 1 . . . . . . . . . . . . . . . . . . Structural Interface 1 | . . . . 1 . . . . . . . . . . . . . . . . . . . . Program Shield 1 | . . . . . . 1 . . . . . . . . . . . . . . . . . . Autoassimilate 1 | . . . . . . . . . . . . . . . . . . 1 . . . . . . Robots Hacked 246 | . . . . 9 4 10 6 12 8 11 14 9 7 17 7 22 13 23 8 18 12 22 9 5 Non-combat 37 | . . . . . 2 . 1 . 4 . 7 . 2 . 2 . 4 . 1 5 . 6 3 . Combat 209 | . . . . 9 2 10 5 12 4 11 7 9 5 17 5 22 9 23 7 13 12 16 6 5 Autoassimilated 16 | . . . . . . . . . . . . . . . . . . 2 2 2 2 5 2 1 Robot Hacks Applied 252 | . . . . 9 4 10 6 12 11 11 18 9 7 17 9 22 19 22 8 19 10 18 7 4 parse_system 8 | . . . . . . . . . . . . . . . 1 1 . 1 1 4 . . . . ignore_repairs 1 | . . . . . . . . . . . 1 . . . . . . . . . . . . . map_walls 2 | . . . . . 1 . . . . . 1 . . . . . . . . . . . . . find_fabricator 3 | . . . . . . . . . . . 1 . . . 1 . . . . . . 1 . . drop_inventory 6 | . . . . . 1 . . . . . 1 . . . . . . . . 1 . 3 . . ignore_parts 2 | . . . . . . . . . . . 1 . . . . . . . . 1 . . . . purge_threat 8 | . . . . . . . . . 1 . 1 . . . . . 4 . . 1 . . 1 . map_route 4 | . . . . . . . . . 1 . 1 . 1 . . . 1 . . . . . . . locate_prototypes 1 | . . . . . . . . . . . . . . . . . . . . . . . 1 . find_garrison 7 | . . . . . . . . . 1 . 1 . . . 1 . 1 . 1 1 . 1 . . amplify_resonance 1 | . . . . . . . . . . . . . . . . . . . . . . 1 . . reboot_system 14 | . . . . . 1 . . 2 . . . 1 . 1 1 1 1 2 1 . . 2 1 . overwrite_iff 24 | . . . . 1 . 2 . 1 . 1 2 1 1 1 . 1 1 5 . 1 4 2 . . formatsys_low 16 | . . . . . . . 1 . 3 . 1 . 1 . 1 . 3 . 1 3 . . 2 . formatsys_high 154 | . . . . 8 1 8 5 9 5 10 7 7 3 15 4 19 8 14 4 7 6 8 2 4 formatsys_deep 1 | . . . . . . . . . . . . . 1 . . . . . . . . . . . Relay Couplers Released 171 | . . . . 14 . 27 . 21 . 17 . 16 . 15 . 25 . 18 . . 18 . . . Machine Destruction 171 | . . . . 14 . 27 . 21 . 17 . 16 . 15 . 25 . 18 . . 18 . . . Attached 65 | . . . . 5 1 7 4 7 1 3 1 3 2 3 1 10 1 8 . 1 5 1 1 . Fabnet Peak Effective % . | . . . . . . . . . . . . . . . . . . . . . . . . . Robots Rewired 36 | . . . . 8 . 3 . 3 . 3 . 4 . . . 3 . 11 . . 1 . . . Allies Hacked 10 | . . . . . . . . . . . . 3 3 . . . 1 . . 2 . . 1 . Hacks Repelled . | . . . . . . . . . . . . . . . . . . . . . . . . . Allies | -11 -10 -9 -9 -9 -8 -8 -8 -8 -7 -7 -6 -6 -5 -5 -5 -5 -4 -4 -3 -3 -3 -2 -2 -2 -------- Run | Yrd Mat Mat Sto Gar Mat Gar Mat Gar Fac Gar Fac Gar Fac Gar Fac Gar Fac Gar Res Tes Gar Res Qua Sec Total Allies 302 | . . . 2 17 1 13 6 13 8 14 16 15 18 18 9 25 16 34 7 13 16 27 9 5 Largest Group 37 | . . . 2 11 8 14 5 14 14 16 19 24 23 21 30 23 22 37 30 29 5 14 14 2 Highest-Rated Group 1897 | . . . 62 189 132 217 91 250 247 311 548 910 764 759 1117 1002 1014 1897 1539 1427 364 1243 1102 124 Highest-Rated Ally 183 | . . . 31 39 39 39 23 39 29 39 47 116 49 80 85 80 142 138 138 152 152 183 183 64 Total Orders 78 | . . . . 3 . 2 5 1 4 3 3 9 2 . 1 . 2 20 2 3 2 9 7 . STAY 30 | . . . . 1 . 1 1 . . 1 2 6 . . 1 . . 10 . . 1 5 1 . FOLLOW 19 | . . . . 2 . 1 1 . . 1 1 3 . . . . . 3 1 . 1 4 1 . AID 29 | . . . . . . . 3 1 4 1 . . 2 . . . 2 7 1 3 . . 5 . Ally Attacks 1935 | . . . 29 61 14 82 2 110 28 102 56 127 81 79 22 140 113 176 29 256 82 163 171 12 Total Damage 59444 | . . . 492 1066 213 1221 13 1326 340 1914 2438 4041 2806 2366 542 3647 5307 6037 1039 10193 2820 5523 5702 398 Kills 439 | . . . 7 9 1 15 . 24 6 20 13 25 25 23 6 34 22 36 4 59 22 50 37 1 Allies Corrupted 7 | . . . . . . . . . . . . . . . . . 2 . . 2 1 . 1 1 Allies Melted 2 | . . . . . . . . . . . 1 . . . . . . 1 . . . . . . Intel | -11 -10 -9 -9 -9 -8 -8 -8 -8 -7 -7 -6 -6 -5 -5 -5 -5 -4 -4 -3 -3 -3 -2 -2 -2 ------- Run | Yrd Mat Mat Sto Gar Mat Gar Mat Gar Fac Gar Fac Gar Fac Gar Fac Gar Fac Gar Res Tes Gar Res Qua Sec Active Infowar (turns) 17270 | 77 306 2 . . . . . . . . 929 1498 559 1014 605 2210 572 2265 646 1462 1299 1546 1357 923 Optics 16885 | . . . . . . . . . . . 929 1498 559 1014 605 2210 572 2265 646 1462 1299 1546 1357 923 Seismic 385 | 77 306 2 . . . . . . . . . . . . . . . . . . . . . . Cloaking 1059 | . . . . . . . . . . . . . . . . . . . . . . 170 889 . Robot Analysis Total . | . . . . . . . . . . . . . . . . . . . . . . . . . Derelict Logs Recovered . | . . . . . . . . . . . . . . . . . . . . . . . . . Drone Launches . | . . . . . . . . . . . . . . . . . . . . . . . . . Drone Recoveries . | . . . . . . . . . . . . . . . . . . . . . . . . . Exploration | -11 -10 -9 -9 -9 -8 -8 -8 -8 -7 -7 -6 -6 -5 -5 -5 -5 -4 -4 -3 -3 -3 -2 -2 -2 ------------- Run | Yrd Mat Mat Sto Gar Mat Gar Mat Gar Fac Gar Fac Gar Fac Gar Fac Gar Fac Gar Res Tes Gar Res Qua Sec Turns Passed 25013 | 120 306 668 118 1431 356 1407 149 790 388 1364 1029 1498 559 1014 605 2210 572 2265 646 1462 1299 1546 1528 1683 Spaces Moved 15604 | 67 190 432 59 909 240 923 85 499 262 860 645 1002 395 602 380 1184 307 1182 391 939 771 1076 1019 1185 Core 2 | 1 . . . . . . . . . . . . 1 . . . . . . . . . . . Treads 1689 | . . . . . . . . . . . . . . . . . 307 1182 200 . . . . . Legs 3667 | . . . . . . . . . . . . . . . . . . . . . 666 1076 1019 906 Wheels 9967 | 66 190 432 59 909 240 923 85 499 262 860 645 1002 394 602 380 1184 . . 191 939 105 . . . Hover . | . . . . . . . . . . . . . . . . . . . . . . . . . Flight . | . . . . . . . . . . . . . . . . . . . . . . . . . Fastest Speed 30 | 50 100 115 120 115 120 120 120 120 120 120 120 115 115 115 130 108 160 160 125 111 110 110 110 30 Average Speed 126 | 99 100 117 120 119 120 120 120 120 120 120 129 117 120 129 131 144 160 160 142 131 114 113 111 117 Slowest Speed 900 | 100 100 145 120 170 120 165 120 120 120 125 135 180 900 145 195 180 160 160 160 160 175 179 118 330 Overloaded Moves . | . . . . . . . . . . . . . . . . . . . . . . . . . Propulsion Burnouts . | . . . . . . . . . . . . . . . . . . . . . . . . . Robots Hopped . | . . . . . . . . . . . . . . . . . . . . . . . . . Potential Cave-ins 29 | . . . . . . . . . . . . . . . . . . . . . . . 7 22 Cave-ins Triggered 1 | . . . . . . . . . . . . . . . . . . . . . . . 1 . Teleports 39 | . . . . . . . . . . . . . . . . . . . . . . . . 39 Spacefolds 1 | . . . . . . . . . . . . . . . . . . . . . . . . 1 Microwarps 18 | . . . . . . . . . . . . . . . . . . . . . . . . 18 Exploration Rate (%) 51 | 3 33 30 22 92 20 89 12 75 12 95 16 98 11 93 11 95 14 98 12 97 68 34 95 63 Regions Visited 24 Branch Regions 4 Pre-discovered Areas . | . . . . . . . . . . . . . . . . . . . . . . . . . Known Exits Taken 12 | . . 1 1 . 1 . 1 . 1 . 1 . 1 . 1 . 1 . 1 1 . 1 . . Unknown Exits Taken 3 | 1 1 . . . . . . . . . . . . . . . . . . . . . 1 . Scrap Searched . | . . . . . . . . . . . . . . . . . . . . . . . . . Spaces Dug 160 | . . . . . 6 . . . . . 4 . . . . . 1 12 3 12 . 9 32 81 Terrain Destroyed 542 | . . . 16 . 6 . . . . 4 7 . 5 1 1 4 1 33 3 74 10 21 41 315 Melee 18 | . . . . . 4 . . . . . . . . . . . . . . 5 . 3 3 3 Projectile 196 | . . . . . 2 . . . . 1 7 . 5 1 1 4 1 24 3 2 4 11 38 92 AOE 328 | . . . 16 . . . . . . 3 . . . . . . . 9 . 67 6 7 . 220 Terrain Rammed . | . . . . . . . . . . . . . . . . . . . . . . . . . Walls Destroyed . | . . . . . . . . . . . . . . . . . . . . . . . . . Machines Disabled . | . . . . . . . . . . . . . . . . . . . . . . . . . Actions | -11 -10 -9 -9 -9 -8 -8 -8 -8 -7 -7 -6 -6 -5 -5 -5 -5 -4 -4 -3 -3 -3 -2 -2 -2 --------- Run | Yrd Mat Mat Sto Gar Mat Gar Mat Gar Fac Gar Fac Gar Fac Gar Fac Gar Fac Gar Res Tes Gar Res Qua Sec Total 19510 | 91 247 531 93 1146 288 1130 124 640 317 1083 813 1240 457 799 470 1544 372 1464 472 1126 1059 1344 1251 1409 Wait 1423 | . 20 41 20 56 19 21 17 45 20 61 114 85 20 79 56 124 27 110 53 74 66 122 69 104 Move 15326 | 66 189 431 59 908 240 922 85 498 262 859 645 1001 395 601 379 1183 306 1181 390 939 770 1075 1017 925 Hop . | . . . . . . . . . . . . . . . . . . . . . . . . . Pick Up 282 | 5 4 14 4 26 4 15 2 10 2 20 6 23 2 16 4 28 3 14 6 11 25 9 9 20 Fast Attach 97 | 7 . 1 1 3 . . . 1 2 3 1 5 5 3 1 6 . 5 1 10 12 6 8 16 Attach 162 | . 1 3 1 7 2 7 1 2 4 1 4 5 6 4 4 4 3 9 4 7 17 12 7 47 Detach 80 | . . 1 . . . 2 . . 2 . . 1 1 2 1 2 1 6 . 7 13 4 2 35 Swap 266 | . 2 5 3 23 7 21 5 15 4 23 9 15 3 8 2 30 2 10 3 9 10 22 23 12 Drop 200 | . 2 6 . 20 2 9 1 1 1 15 2 18 . 4 . 24 . 10 3 17 18 15 11 21 Fire 1244 | 13 29 29 5 65 10 58 12 36 19 64 32 55 25 42 15 74 30 118 12 41 84 65 95 216 Melee 117 | . . . . 12 4 3 . 5 . 10 . 4 . . . 25 . . . 11 23 4 8 8 Ram . | . . . . . . . . . . . . . . . . . . . . . . . . . Kick 1 | . . . . . . . . . . . . . . . . . . . . . . . . 1 Crush . | . . . . . . . . . . . . . . . . . . . . . . . . . Escape Stasis 292 | . . . . 24 . 72 . 24 . 24 . 24 . 40 8 40 . . . . 21 10 1 4 Rewire 20 | . . . . 2 . . 1 3 1 3 . 4 . . . 4 . 1 . . . . 1 . Trap . | . . . . . . . . . . . . . . . . . . . . . . . . . Miscellaneous . | . . . . . . . . . . . . . . . . . . . . . . . . . Route ------- -11/Scrapyard -10/Materials -9/Materials (discovered 3 exits: *Mat / Min / *Sto) -9/Storage -9/Garrison (discovered 3 exits: *Mat x3) -8/Materials -8/Garrison (discovered 4 exits: *Mat x4) -8/Materials -8/Garrison (discovered 3 exits: *Fac x3) -7/Factory (discovered 2 exits: Fac / Gar) -7/Garrison (discovered 3 exits: *Fac x3) -6/Factory (discovered 4 exits: *Fac x2 / [*Low] / Gar) -6/Garrison (discovered 3 exits: *Fac x3) -5/Factory -5/Garrison (discovered 3 exits: *Fac x3) -5/Factory (discovered 3 exits: *Fac / [*Upp] / Gar) -5/Garrison (discovered 3 exits: *Fac x3) -4/Factory (discovered 4 exits: *Res x2 / [*Upp] / Gar) -4/Garrison (discovered 3 exits: *Res x3) -3/Research (discovered 3 exits: *Res / *Tes x2) -3/Testing (discovered 2 exits: *Res / Gar) -3/Garrison (discovered 3 exits: *Res x3) -2/Research (discovered 2 exits: *Qua x2) -2/Quarantine (discovered 3 exits: [*Acc] / *Sec / [*Frg]) -2/Section 7 (discovered 1 exit: [*Acc]) History --------- Turn | Location | Event 54 | -11/Scrapyard | Discovered new exit (range 16) 121 | -11/Scrapyard | Entered Materials 312 | -10/Materials | Build established: Mutant 316 | -10/Materials | Core integrity fell below 50% 412 | -10/Materials | Discovered new exit (range 15) 427 | -10/Materials | Entered another Materials area 427 | -9/Materials | Evolved 2 slots: Utility x1, Weapon x1 733 | -9/Materials | Build established: Gunner 939 | -9/Materials | Discovered new exit (range 7) 964 | -9/Materials | Identified exit to Mines 964 | -9/Materials | Identified exit to Storage 1041 | -9/Materials | Discovered new exit (range 16) 1095 | -9/Materials | Entered Storage 1104 | -9/Storage | Met a pair of Derelict thieves 1178 | -9/Storage | Garrison activated, responded to threat 1194 | -9/Storage | Identified exit to Garrison 1213 | -9/Storage | Entered Garrison 1213 | -9/Garrison | Accompanied by 1 ally 1265 | -9/Garrison | Triggered checkpoint 1314 | -9/Garrison | Garrison Relay disabled 1406 | -9/Garrison | P-60 Hacker assimilated allied 7N-DE9(g) 1580 | -9/Garrison | Triggered checkpoint 1775 | -9/Garrison | Triggered checkpoint 1804 | -9/Garrison | Discovered new exit (range 8) 1814 | -9/Garrison | Installed Relay Interface Framework 1888 | -9/Garrison | Triggered checkpoint 1940 | -9/Garrison | Discovered new exit (range 10) 1963 | -9/Garrison | Triggered checkpoint 2002 | -9/Garrison | Triggered checkpoint 2026 | -9/Garrison | Garrison Relay disabled 2065 | -9/Garrison | Expanded RIF knowledge: Structural Interface 2199 | -9/Garrison | Triggered checkpoint 2243 | -9/Garrison | Garrison Relay disabled 2255 | -9/Garrison | Learned Materials security intel 2302 | -9/Garrison | Garrison Relay disabled 2357 | -9/Garrison | Triggered checkpoint 2375 | -9/Garrison | Discovered new exit (range 54) 2375 | -9/Garrison | Discovered new exit (range 12) 2375 | -9/Garrison | Discovered new exit (range 104) 2521 | -9/Garrison | Triggered checkpoint 2535 | -9/Garrison | Core integrity fell below 50% 2569 | -9/Garrison | Spotted B-75 Beast 2569 | -9/Garrison | Allies destroyed B-75 Beast 2594 | -9/Garrison | Lost 6 allies 2644 | -9/Garrison | Entered Materials 2644 | -8/Materials | Accompanied by 7 allies 2644 | -8/Materials | Evolved 2 slots: Utility x2 2934 | -8/Materials | Build established: Bothacker-Tank 3000 | -8/Materials | Identified exit to Garrison 3000 | -8/Materials | Entered Garrison 3000 | -8/Garrison | Accompanied by 7 allies 3080 | -8/Garrison | Triggered checkpoint 3115 | -8/Garrison | Garrison Relay disabled 3271 | -8/Garrison | Triggered checkpoint 3294 | -8/Garrison | Triggered checkpoint 3313 | -8/Garrison | Triggered checkpoint 3325 | -8/Garrison | Triggered checkpoint 3380 | -8/Garrison | Expanded RIF knowledge: Program Shield 3402 | -8/Garrison | Triggered checkpoint 3455 | -8/Garrison | Lost 5 allies 3458 | -8/Garrison | Garrison Relay disabled 3515 | -8/Garrison | Lost 6 allies 3639 | -8/Garrison | Discovered new exit (range 12) 3688 | -8/Garrison | Triggered checkpoint 3698 | -8/Garrison | Discovered new exit (range 6) 3843 | -8/Garrison | Discovered new exit (range 10) 3925 | -8/Garrison | Lost 5 allies 3935 | -8/Garrison | Garrison Relay disabled 3944 | -8/Garrison | Garrison Relay disabled 3955 | -8/Garrison | Garrison Relay disabled 3980 | -8/Garrison | Garrison Relay disabled 4056 | -8/Garrison | Triggered checkpoint 4067 | -8/Garrison | Garrison Relay disabled 4081 | -8/Garrison | Expanded RIF knowledge: Alert ID Control 4257 | -8/Garrison | Discovered new exit (range 13) 4290 | -8/Garrison | Triggered checkpoint 4382 | -8/Garrison | Build established: Botlord-Tank 4407 | -8/Garrison | Entered Materials 4556 | -8/Materials | Identified exit to Garrison 4556 | -8/Materials | Entered Garrison 4556 | -8/Garrison | Accompanied by 5 allies 4578 | -8/Garrison | Spotted B-75 Beast 4578 | -8/Garrison | Spotted B-75 Beast 4603 | -8/Garrison | Garrison Relay disabled 4624 | -8/Garrison | Triggered checkpoint 4683 | -8/Garrison | Garrison Relay disabled 4774 | -8/Garrison | Triggered checkpoint 4797 | -8/Garrison | Garrison Relay disabled 4890 | -8/Garrison | Triggered checkpoint 4916 | -8/Garrison | Triggered checkpoint 4917 | -8/Garrison | Build established: Botlord-Mutant 4937 | -8/Garrison | Triggered checkpoint 4944 | -8/Garrison | Triggered checkpoint 4988 | -8/Garrison | Expanded RIF knowledge: Hotswap 5019 | -8/Garrison | Discovered new exit (range 10) 5056 | -8/Garrison | Triggered checkpoint 5081 | -8/Garrison | Garrison Relay disabled 5210 | -8/Garrison | Triggered checkpoint 5228 | -8/Garrison | Garrison Relay disabled 5257 | -8/Garrison | Discovered new exit (range 26) 5257 | -8/Garrison | Discovered new exit (range 31) 5257 | -8/Garrison | Discovered new exit (range 70) 5346 | -8/Garrison | Entered Factory 5346 | -7/Factory | Accompanied by 11 allies 5346 | -7/Factory | Evolved 2 slots: Utility x2 5561 | -7/Factory | Lost 5 allies 5581 | -7/Factory | Discovered new exit (range 113) 5714 | -7/Factory | Identified exit to Garrison 5734 | -7/Factory | Entered Garrison 5734 | -7/Garrison | Accompanied by 14 allies 5771 | -7/Garrison | Triggered checkpoint 5858 | -7/Garrison | Garrison Relay disabled 5883 | -7/Garrison | Build established: Botlord-Gunner 5976 | -7/Garrison | Triggered checkpoint 5982 | -7/Garrison | Triggered checkpoint 6023 | -7/Garrison | Lost 4 allies 6072 | -7/Garrison | Lost 5 allies 6117 | -7/Garrison | Triggered checkpoint 6135 | -7/Garrison | Garrison Relay disabled 6182 | -7/Garrison | Lost 4 allies 6274 | -7/Garrison | Discovered new exit (range 12) 6368 | -7/Garrison | Triggered checkpoint 6412 | -7/Garrison | Lost 4 allies 6574 | -7/Garrison | Discovered new exit (range 15) 6597 | -7/Garrison | Garrison Relay disabled 6772 | -7/Garrison | Discovered new exit (range 10) 6944 | -7/Garrison | Discovered new exit (range 66) 6944 | -7/Garrison | Discovered new exit (range 61) 6944 | -7/Garrison | Discovered new exit (range 7) 6966 | -7/Garrison | Triggered checkpoint 6993 | -7/Garrison | Garrison Relay disabled 7013 | -7/Garrison | Expanded RIF knowledge: Patrol Navigation 7098 | -7/Garrison | Entered Factory 7098 | -6/Factory | Accompanied by 8 allies 7098 | -6/Factory | Evolved 2 slots: Utility x2 7284 | -6/Factory | Discovered new exit (range 12) 7452 | -6/Factory | Discovered new exit (range 15) 7489 | -6/Factory | Discovered new exit (range 20) 7491 | -6/Factory | Build established: Botlord-Skirmisher 7829 | -6/Factory | Fabricated P-60 Hacker (x2) 7903 | -6/Factory | Fabricated P-60 Hacker (x2) 7978 | -6/Factory | Fabricated P-60 Hacker? 8102 | -6/Factory | Identified exit to Garrison 8127 | -6/Factory | Entered Garrison 8127 | -6/Garrison | Accompanied by 19 allies 8235 | -6/Garrison | Triggered checkpoint 8269 | -6/Garrison | Garrison Relay disabled 8391 | -6/Garrison | Triggered checkpoint 8398 | -6/Garrison | Hacker 5c assimilated hostile G-50 Soldier 8404 | -6/Garrison | Triggered checkpoint 8417 | -6/Garrison | Triggered checkpoint 8421 | -6/Garrison | Hacker 5a assimilated hostile G-50 Soldier 8435 | -6/Garrison | Triggered checkpoint 8470 | -6/Garrison | Lost 5 allies 8514 | -6/Garrison | Triggered checkpoint 8585 | -6/Garrison | Garrison Relay disabled 8632 | -6/Garrison | Discovered new exit (range 12) 8739 | -6/Garrison | Spotted B-75 Beast 8744 | -6/Garrison | Hacker 5c assimilated hostile G-50 Soldier 8761 | -6/Garrison | Discovered new exit (range 11) 8771 | -6/Garrison | Rewired B-86 Titan 8780 | -6/Garrison | Assimilated Beast 5a with formatsys_high 8888 | -6/Garrison | Learned Factory security intel 8891 | -6/Garrison | Triggered checkpoint 8913 | -6/Garrison | Garrison Relay disabled 8958 | -6/Garrison | Expanded RIF knowledge: Signal Jamming 9110 | -6/Garrison | Garrison Relay disabled 9122 | -6/Garrison | Triggered checkpoint 9146 | -6/Garrison | Discovered new exit (range 53) 9146 | -6/Garrison | Discovered new exit (range 87) 9146 | -6/Garrison | Discovered new exit (range 13) 9237 | -6/Garrison | Found Gamma Bomb Array 9411 | -6/Garrison | Build established: Botlord-Gunner 9625 | -6/Garrison | Entered Factory 9625 | -5/Factory | Accompanied by 21 allies 9625 | -5/Factory | Evolved 2 slots: Propulsion x1, Utility x1 9740 | -5/Factory | Lost 5 allies 9890 | -5/Factory | Fabricated P-60 Hacker? 9912 | -5/Factory | Hacker 6a assimilated hostile W-25 Informer 9925 | -5/Factory | First assault squad dispatched 9984 | -5/Factory | Hacker 5a assimilated hostile S-27 Virus 10011 | -5/Factory | Fabricated P-60 Hacker? 10040 | -5/Factory | Hacker 6c assimilated hostile G-50 Soldier 10045 | -5/Factory | Assimilated ARC 6a with formatsys_deep 10142 | -5/Factory | Lost 17 allies 10167 | -5/Factory | Identified exit to Garrison 10184 | -5/Factory | Entered Garrison 10184 | -5/Garrison | Accompanied by 13 allies 10224 | -5/Garrison | Triggered checkpoint 10251 | -5/Garrison | Garrison Relay disabled 10388 | -5/Garrison | Triggered checkpoint 10413 | -5/Garrison | Triggered checkpoint 10423 | -5/Garrison | Lost 4 allies 10460 | -5/Garrison | Found embedded Infiltrators 10460 | -5/Garrison | Discovered new exit (range 12) 10528 | -5/Garrison | Triggered checkpoint 10553 | -5/Garrison | Garrison Relay disabled 10713 | -5/Garrison | Triggered checkpoint 10750 | -5/Garrison | Triggered checkpoint 10796 | -5/Garrison | Triggered checkpoint 10804 | -5/Garrison | Garrison Relay disabled 10829 | -5/Garrison | Build established: Botlord-Tank 10858 | -5/Garrison | Discovered new exit (range 13) 10979 | -5/Garrison | Discovered new exit (range 12) 11019 | -5/Garrison | Expanded RIF knowledge: Zone Cloak 11027 | -5/Garrison | Triggered checkpoint 11051 | -5/Garrison | Garrison Relay disabled 11089 | -5/Garrison | Spotted Executioner 11089 | -5/Garrison | Spotted Executioner 11198 | -5/Garrison | Entered Factory 11198 | -5/Factory | Accompanied by 21 allies 11407 | -5/Factory | Spotted B-75 Beast 11410 | -5/Factory | Assimilated Beast 6a with formatsys_high 11461 | -5/Factory | Fabricated P-60 Hacker? 11602 | -5/Factory | Discovered new exit (range 12) 11626 | -5/Factory | Discovered new exit (range 12) 11674 | -5/Factory | Fabricated P-60 Hacker? 11728 | -5/Factory | Identified exit to Garrison 11803 | -5/Factory | Entered Garrison 11803 | -5/Garrison | Accompanied by 20 allies 11843 | -5/Garrison | Lost 7 allies 11959 | -5/Garrison | Lost 8 allies 11972 | -5/Garrison | Garrison Relay disabled 12055 | -5/Garrison | Lost 6 allies 12120 | -5/Garrison | Garrison Relay disabled 12249 | -5/Garrison | Triggered checkpoint 12253 | -5/Garrison | Triggered checkpoint 12303 | -5/Garrison | Triggered checkpoint 12321 | -5/Garrison | Triggered checkpoint 12471 | -5/Garrison | Found Relay Coupler [Proto] 12473 | -5/Garrison | Found Relay Coupler [Proto] 12532 | -5/Garrison | Expanded RIF knowledge: Coupler Efficiency 12623 | -5/Garrison | Triggered checkpoint 12642 | -5/Garrison | Expanded RIF knowledge: Watcher Feeds 12663 | -5/Garrison | Garrison Relay disabled 12682 | -5/Garrison | Found embedded Infiltrators 12689 | -5/Garrison | Garrison Relay disabled 12751 | -5/Garrison | Discovered new exit (range 8) 12975 | -5/Garrison | Triggered checkpoint 13027 | -5/Garrison | Discovered new exit (range 5) 13102 | -5/Garrison | Garrison Relay disabled 13186 | -5/Garrison | Build established: Botlord-Gunner 13234 | -5/Garrison | Garrison Relay disabled 13723 | -5/Garrison | Triggered checkpoint 13782 | -5/Garrison | Discovered new exit (range 8) 13921 | -5/Garrison | Build established: Botlord-Tank 14013 | -5/Garrison | Entered Factory 14013 | -4/Factory | Accompanied by 19 allies 14013 | -4/Factory | Evolved 2 slots: Propulsion x1, Utility x1 14175 | -4/Factory | Fabricated P-60 Hacker? 14214 | -4/Factory | System corruption reached 10% 14285 | -4/Factory | Discovered new exit (range 22) 14335 | -4/Factory | Discovered new exit (range 15) 14452 | -4/Factory | Garrison activated, responded to threat 14486 | -4/Factory | Hacker 7a assimilated hostile Y-64 Sentinel 14494 | -4/Factory | Lost 11 allies 14535 | -4/Factory | Discovered new exit (range 21) 14547 | -4/Factory | Identified exit to Garrison 14585 | -4/Factory | Entered Garrison 14585 | -4/Garrison | Accompanied by 21 allies 14671 | -4/Garrison | Triggered checkpoint 14707 | -4/Garrison | Garrison Relay disabled 14731 | -4/Garrison | Rescued a captive Derelict 14732 | -4/Garrison | Rescued a captive Derelict 14810 | -4/Garrison | Lost 3 allies 14817 | -4/Garrison | Triggered checkpoint 14818 | -4/Garrison | Triggered checkpoint 14818 | -4/Garrison | Triggered checkpoint 14861 | -4/Garrison | Spotted B-86 Titan 14864 | -4/Garrison | Assimilated Titan 7a with formatsys_high 14894 | -4/Garrison | Lost 9 allies 14932 | -4/Garrison | Rewired B-75 Beast 14939 | -4/Garrison | Spotted B-90 Cyclops 14965 | -4/Garrison | Rewired B-75 Beast 14966 | -4/Garrison | Allies destroyed B-90 Cyclops 14978 | -4/Garrison | Triggered checkpoint 15222 | -4/Garrison | Spotted B-86 Titan 15265 | -4/Garrison | Allies destroyed B-86 Titan 15307 | -4/Garrison | Triggered checkpoint 15346 | -4/Garrison | Expanded RIF knowledge: Autoassimilate 15360 | -4/Garrison | Garrison Relay disabled 15480 | -4/Garrison | Discovered new exit (range 11) 15747 | -4/Garrison | Triggered checkpoint 15790 | -4/Garrison | Garrison Relay disabled 15825 | -4/Garrison | Discovered new exit (range 19) 15935 | -4/Garrison | Spotted B-86 Titan 16021 | -4/Garrison | Destroyed B-86 Titan 16034 | -4/Garrison | Found Relay Coupler [Proto] 16199 | -4/Garrison | Triggered checkpoint 16266 | -4/Garrison | Discovered new exit (range 12) 16271 | -4/Garrison | Spotted Striker 16271 | -4/Garrison | Spotted Striker 16285 | -4/Garrison | Assimilated Striker with formatsys_high 16292 | -4/Garrison | Assimilated Striker with formatsys_high 16314 | -4/Garrison | Build established: Commander-Tank 16357 | -4/Garrison | Triggered checkpoint 16413 | -4/Garrison | Garrison Relay disabled 16850 | -4/Garrison | Entered Research 16850 | -3/Research | Accompanied by 28 allies 16850 | -3/Research | Evolved 2 slots: Utility x1, Weapon x1 17099 | -3/Research | Discovered new exit (range 12) 17152 | -3/Research | Build established: Botlord-Tank 17281 | -3/Research | Identified exit to Testing 17350 | -3/Research | First assault squad dispatched 17437 | -3/Research | Lost 4 allies 17496 | -3/Research | Entered Testing 17496 | -3/Testing | Accompanied by 25 allies 17512 | -3/Testing | Found Prototype Energy Cannon 17512 | -3/Testing | Identified Potential Cannon 17516 | -3/Testing | Found Potential Cannon 17678 | -3/Testing | Found Prototype Launcher 17678 | -3/Testing | Identified Z-bomb Delivery System 17915 | -3/Testing | Spotted Striker 17915 | -3/Testing | Spotted Striker 17916 | -3/Testing | Autoassimilated Striker with RIF 17936 | -3/Testing | Spotted Alpha 7 17937 | -3/Testing | Autoassimilated Alpha 7 with RIF 17990 | -3/Testing | Found Prototype Device 17991 | -3/Testing | Identified AEGIS Remote Shield 18084 | -3/Testing | Lost 10 allies 18163 | -3/Testing | Found Prototype Processor 18179 | -3/Testing | Lost 4 allies 18301 | -3/Testing | Build established: Botlord-Gunner 18386 | -3/Testing | Lost 3 allies 18437 | -3/Testing | Identified exit to Research 18666 | -3/Testing | Found Prototype Launcher 18666 | -3/Testing | Identified Tactical Quantum Warhead 18686 | -3/Testing | Identified Spectral Analyzer 18702 | -3/Testing | Found Prototype Leg 18725 | -3/Testing | Identified Myomer Exoskeleton 18826 | -3/Testing | Garrison activated, responded to threat 18944 | -3/Testing | Identified exit to Garrison 18958 | -3/Testing | Entered Garrison 18958 | -3/Garrison | Accompanied by 1 ally 18963 | -3/Garrison | Lost 6 allies 18993 | -3/Garrison | Rescued a captive Derelict 18995 | -3/Garrison | Rescued a captive Derelict 19003 | -3/Garrison | Triggered checkpoint 19036 | -3/Garrison | Garrison Relay disabled 19106 | -3/Garrison | Spotted B-86 Titan 19108 | -3/Garrison | Triggered checkpoint 19157 | -3/Garrison | Destroyed B-86 Titan 19175 | -3/Garrison | Lost 5 allies 19226 | -3/Garrison | Triggered checkpoint 19231 | -3/Garrison | Lost 4 parts (2n2w) 19264 | -3/Garrison | Lost 3 allies 19304 | -3/Garrison | Expanded RIF knowledge: Command Fork 19344 | -3/Garrison | Triggered checkpoint 19400 | -3/Garrison | Garrison Relay disabled 19437 | -3/Garrison | Learned Research security intel 19441 | -3/Garrison | Discovered exit to Research (range 11) 19494 | -3/Garrison | Triggered checkpoint 19517 | -3/Garrison | Triggered checkpoint 19654 | -3/Garrison | Triggered checkpoint 19683 | -3/Garrison | Garrison Relay disabled 19715 | -3/Garrison | Discovered exit to Research (range 12) 19715 | -3/Garrison | Discovered exit to Research (range 41) 19715 | -3/Garrison | Discovered exit to Research (range 53) 19794 | -3/Garrison | Triggered checkpoint 19824 | -3/Garrison | Garrison Relay disabled 19899 | -3/Garrison | Spotted B-86 Titan 19901 | -3/Garrison | Assimilated Titan 8a with formatsys_high 20257 | -3/Garrison | Entered Research 20257 | -2/Research | Accompanied by 2 allies 20257 | -2/Research | Evolved 2 slots: Power x1, Propulsion x1 20338 | -2/Research | Fabricated P-80 Master? 20490 | -2/Research | Lost 7 allies 20618 | -2/Research | Spotted B-90 Cyclops 20619 | -2/Research | Autoassimilated Cyclops 9a with RIF 20652 | -2/Research | Found Unknown Protection 20653 | -2/Research | Identified Imp. Powered Armor 20659 | -2/Research | Found Imp. Powered Armor 20680 | -2/Research | Build established: Botlord-Tank 20927 | -2/Research | Identified exit to Quarantine 21058 | -2/Research | Build established: Botlord-Gunner 21221 | -2/Research | Spotted B-90 Cyclops 21222 | -2/Research | Autoassimilated Cyclops 9b with RIF 21238 | -2/Research | Found Prototype Processor 21238 | -2/Research | Identified Exp. Melee Analysis Suite 21278 | -2/Research | Fabricated P-80 Master? 21391 | -2/Research | Fabricated P-80 Master (x2) 21461 | -2/Research | Fabricated P-80 Master (x2) 21531 | -2/Research | Fabricated P-80 Master? 21560 | -2/Research | Found Prototype Processor 21560 | -2/Research | Identified Exp. Core Analyzer 21803 | -2/Research | Entered Quarantine 21803 | -2/Quarantine | Accompanied by 13 allies 21821 | -2/Quarantine | Found Alien Artifact 22020 | -2/Quarantine | Found Quantum Capacitor 22207 | -2/Quarantine | Found Terrabomb 22370 | -2/Quarantine | Master 9e assimilated hostile S-43 Plague 22377 | -2/Quarantine | Garrison activated, responded to threat 22453 | -2/Quarantine | Lost 11 allies 22534 | -2/Quarantine | Lost 6 allies 22670 | -2/Quarantine | Crushed by falling debris 22709 | -2/Quarantine | System corruption reached 10% 23030 | -2/Quarantine | Found Core Stripper 23057 | -2/Quarantine | Discovered new exit (range 6) 23241 | -2/Quarantine | Spotted Fortress 23326 | -2/Quarantine | Discovered new exit (range 6) 23326 | -2/Quarantine | Discovered new exit (range 6) 23331 | -2/Quarantine | Entered Section 7 23368 | -2/Section 7 | Found Alien Artifact 23368 | -2/Section 7 | Identified Spacefold Activator 23526 | -2/Section 7 | Spotted S7 Guard 23556 | -2/Section 7 | Found Alien Artifact 23556 | -2/Section 7 | Identified Core Regenerator 23556 | -2/Section 7 | Used Core Regenerator, restored core integrity (+362) 23569 | -2/Section 7 | Destroyed S7 Guard 23581 | -2/Section 7 | Found Prototype Protection 23581 | -2/Section 7 | Identified Hvy. Regenerative Plating 23613 | -2/Section 7 | Spotted S7 Guard 23630 | -2/Section 7 | Destroyed S7 Guard 23650 | -2/Section 7 | Found Alien Artifact 23650 | -2/Section 7 | Identified Navigation Efficiency Matrix 23650 | -2/Section 7 | Installed Navigation Efficiency Matrix, process failed with unexpected side effects 23768 | -2/Section 7 | Lost 4 parts (3p1n) 23946 | -2/Section 7 | Destroyed 10 combat bots 23995 | -2/Section 7 | Spotted S7 Guard 24010 | -2/Section 7 | Destroyed S7 Guard 24045 | -2/Section 7 | Found Alien Artifact 24045 | -2/Section 7 | Identified Core Physics Calibrator 24190 | -2/Section 7 | Build established: Botlord-Mutant 24331 | -2/Section 7 | First assault squad dispatched 24486 | -2/Section 7 | Found Alien Artifact 24486 | -2/Section 7 | Identified Core Reset Matrix (x2) 24486 | -2/Section 7 | Used Core Reset Matrix 24490 | -2/Section 7 | Detected hypermatrix surge 24490 | -2/Section 7 | Sensed 23 artifacts in vicinity 24560 | -2/Section 7 | Lost 3 parts (1p2n) 24659 | -2/Section 7 | Discovered new exit (range 15) 24664 | -2/Section 7 | Found Microwarp Drive 24708 | -2/Section 7 | Lost 4 parts (1n2u1w) 24752 | -2/Section 7 | Spotted Alpha 7 24752 | -2/Section 7 | Spotted Alpha 7 24753 | -2/Section 7 | Core integrity fell below 50% 24755 | -2/Section 7 | Spotted B-99 Colossus 24785 | -2/Section 7 | Lost 7 parts (2p2n2u1w) 24871 | -2/Section 7 | Integrated with Sigix Exoskeleton 24886 | -2/Section 7 | Scanned by Researcher 24887 | -2/Section 7 | Intercept squad dispatched 24902 | -2/Section 7 | Spotted Tracker 24904 | -2/Section 7 | Spotted Tracker 24910 | -2/Section 7 | Core integrity fell below 20% 24921 | -2/Section 7 | Used Terrabomb 24922 | -2/Section 7 | Spotted Executioner 24929 | -2/Section 7 | Found Integrity Redistributor 24929 | -2/Section 7 | Used Integrity Redistributor, redistributed integrity to core (+442) 24930 | -2/Section 7 | Sigix Exoskeleton integrity reduced to 80% 24931 | -2/Section 7 | Sigix Exoskeleton integrity reduced to 60% 24932 | -2/Section 7 | Sigix Exoskeleton integrity reduced to 40% 24935 | -2/Section 7 | Spotted S7 Guard 24940 | -2/Section 7 | Sigix Exoskeleton integrity reduced to 20% 24945 | -2/Section 7 | Found Core Membrane 24945 | -2/Section 7 | Installed Core Membrane, gained immunity to corruption 24968 | -2/Section 7 | Spotted B-90 Cyclops 24991 | -2/Section 7 | Spotted Investigator 25011 | -2/Section 7 | Destroyed Investigator 25014 | -2/Section 7 | Exoskeleton Destroyed Last Messages --------------- 25011_ Switching to secondary target: Y-72 Warden. 25011_ Quantum Shear penetrates G-73 Enforcer. 25011_ G-73 Enforcer stasis bubble strength at 131. 25012_ G-73 Enforcer stasis bubble strength at 16. 25012_ G-73 Enforcer stasis bubble strength at 108. 25013_ G-73 Enforcer stasis bubble bursts. 25013_ Penetrated by Slug. 25013_ G-73 Enforcer stasis bubble strength at 85. 25013_ Stasis bubble bursts. 25014_ Kicked G-73 Enforcer out of the way. 25014_ M-36 Artificer stasis bubble strength at 113. 25014_ G-73 Enforcer stasis bubble strength at 62. 25014_ Sigix Exoskeleton destroyed. Map ----- +----------------------------------------------------+ | ############ #### =% # [ ! | | ?########### #### # ! | | ??########## #### "" ######## | | ??########## #### "" # "" ! | | ???######### #### ######+### " # "" | | ????######## #### ## # *![ # " | | ?????####### #### ##![ "" *![ "# | | ???????#####+#### ##*[ # """ *[["%+ | | ??????# # ##*[ # """ "# ! | | ?????## """"""" # ## # |%! ! # | | ????### """"""" # ##! # # | | ????## """"""" # #############+######## ! | | ???#### # ######## #?######## | | ??#####! ===#$ p ######## #??????### | | ??##### ===#%$ ##### ## "" #????????? | | ??##### ===#$ ### # ## "!" #????????? | | ?##########+#####= p######## """" [ #????????? | | ?####### = A % ### """ [ #????????? | | ?![ % # [ = = % ### [ ##???????? | | ?####### % [ [ = ##########/#####???????? | | ?%!=%=[[ = [ A= % # ggg ###???????? | | ################ # ##s %# ###???????? | | ?#############u# #""##!* !# l ###???????? | | ?*##############gg";;!%] # """ ####??????? | | ?##[=###########/#####!g m#= "" ####??????? | | ?[########### #gYgX#% ###???????? | | ? ###########"" """Y# YH g= "" ###???????? | | ??###########"" """ + g%Y; """ ###???????? | | ??###########"" """ # Y< ; " " ###???????? | | ??###########T """ # !% # """ ###???????? | | ???""########"" """ # | # ##????????? | | ????"########"" """ ###### ##????????? | | ????"########"" """ ####################????????? | | ?????######## ###################?????????? | | ??????############## ##################??????????? | | ???????################################??????????? | | ?????????#############################???????????? | | ??????????###########################????????????? | | | | | | | | | | | | | | | | | | | | | | | | | +----------------------------------------------------+ Best States ------------- Heat Dissipation 139 Energy Generation 53 Energy Capacity 800 Matter Stores 300 Matter Capacity 300 Sight Range 23 Terrain Scan Density 10 Cloak Strength 3 Armor Coverage 600 Resistance: KI 50 Resistance: TH 50 Resistance: EX 50 Resistance: EM 50 Resistance: I 50 Resistance: S 50 Resistance: P 50 Weapon Cycling 25 Phase Shifting 15 Evasion (%) 70 Targeting Accuracy 24 Recoil Reduction 4 Energy Filtering 30 Offensive Hacking 14 Relay Coupler Types 8 Relay Coupler Value 214 Authchip Count 5 Item Schematics ----------------- None Robot Schematics ------------------ None Fabricated ------------ P-60 Hacker | x2 | -6/Factory | Authchip P-60 Hacker | x2 | -6/Factory | Authchip P-60 Hacker | x2 | -6/Factory | Authchip P-60 Hacker | x2 | -5/Factory | Authchip P-60 Hacker | x2 | -5/Factory | Authchip P-60 Hacker | x2 | -5/Factory | Authchip P-60 Hacker | x2 | -5/Factory | Authchip P-60 Hacker | x2 | -4/Factory | Authchip P-80 Master | x2 | -2/Research | Authchip P-80 Master | x2 | -2/Research | Authchip P-80 Master | x2 | -2/Research | Authchip P-80 Master | x2 | -2/Research | Authchip P-80 Master | x2 | -2/Research | Authchip Repaired ---------- Nothing Alien Tech Used ----------------- Spacefold Activator Core Regenerator Core Stripper Navigation Efficiency Matrix Core Physics Calibrator Core Reset Matrix Microwarp Drive Sigix Exoskeleton Sigix Sheargun Terrabomb Integrity Redistributor Core Membrane Achievements -------------- Max Potential Challenges ------------ None Game ------ Seed ScanCorruptionExtrapolator Manual? 0 Play Time 07:22:40 Cumulative 138.1 hours Start 2025.08.31 @ 22:08:33 End 2025.09.03 @ 01:21:23 Sessions 4 Manual Loads 0 Difficulty Rogue Special Mode None Game No. 62 Rogue 62 Adventurer 0 Explorer 0 Win Type - Total 2 Types 2/0/0/0/0/0/0/0/0/0 Lore% 19 Gallery% 53 Achievement% 45 Wizard Run 0 Options --------- Layout 1 ASCII 0 Keyboard 0 Movement Mouse Keybinds 0 Fullscreen 1 Font 24/Smallcaps Map View 50x35 Zoom Use 0% Tactical HUD 1 Map Filters NONE Filters NONE Steam 1 RUN: f31fa8dc-15df-43c5-9cbe-980c75599877